Cogmind - Beta 15 @@@ ROGUE MODE // 2025.08.15 @ 10:13:11 Player: eVander Result: Destroyed by H-61 Shepherd with Heavy Assault Cannon Performance ------------- Evolutions (2) 1000 Regions Visited (7) 1400 Robots Destroyed (40) 200 Value Destroyed (885) 885 Prototype IDs (1) 20 Alien Tech Used (0) 0 Bonus (14) 14 TOTAL SCORE: 3519 Bonus ------- Follower Combat Kills 14 Cogmind --------- Core Integrity 0/550 Matter 300/300 Energy 99/100 System Corruption 0% Temperature Cool (0) Movement Core (50) Location -8/Materials Parts ------- > --- POWER (1) -------- (None) > --- PROPULSION (3) --- (None) > --- UTILITY (4) ------ (None) > --- WEAPON (3) ------- (None) > --- INVENTORY (5) ---- (None) Peak State ------------ > --- POWER ------------ Light Deuterium Engine > --- PROPULSION ------- Cesium-ion Thruster Cesium-ion Thruster Cesium-ion Thruster > --- UTILITY ---------- Improved Targeting Computer > --- WEAPON ----------- Particle Gun Particle Gun > --- INVENTORY -------- Grenade Launcher [Rating: 18] Favorites ----------- Power Ion Engine Engine Ion Engine Power Core Light Nuclear Core Propulsion Light Treads Treads Light Treads Leg Aluminum Leg Flight Unit Cesium-ion Thruster Utility Improved Targeting Computer Device Heat Sink Processor Improved Targeting Computer Weapon Improved Medium Laser Energy Gun Improved Medium Laser Launcher Grenade Launcher Build | -11 -10 -10 -9 -9 -9 -8 -8 ------- Run | Yrd Mat Min Mat Min Exi Min Mat Slots Evolved 4 | . . . 2 . . . 2 Power . | . . . . . . . . Propulsion 1 | . . . 1 . . . . Utility 2 | . . . 1 . . . 1 Weapon 1 | . . . . . . . 1 Parts Attached 32 | 4 1 3 14 1 . 2 7 Power 8 | 1 . . 3 . . 1 3 Engine 6 | 1 . . 3 . . 1 1 Core 2 | . . . . . . . 2 Reactor . | . . . . . . . . Propulsion 11 | 2 . . 6 . . . 3 Treads 3 | 2 . . 1 . . . . Leg 1 | . . . . . . . 1 Wheel . | . . . . . . . . Hover . | . . . . . . . . Flight 7 | . . . 5 . . . 2 Utility 3 | . . 2 1 . . . . Device 1 | . . 1 . . . . . Storage . | . . . . . . . . Processor 2 | . . 1 1 . . . . Hackware . | . . . . . . . . Protection . | . . . . . . . . Artifact . | . . . . . . . . Weapon 10 | 1 1 1 4 1 . 1 1 Energy Gun 9 | 1 . 1 4 1 . 1 1 Energy Cannon . | . . . . . . . . Ballistic Gun . | . . . . . . . . Ballistic Cannon . | . . . . . . . . Launcher 1 | . 1 . . . . . . Special Weapon . | . . . . . . . . Impact Weapon . | . . . . . . . . Slashing Weapon . | . . . . . . . . Piercing Weapon . | . . . . . . . . Special Melee Weapon . | . . . . . . . . Unidentified Prototypes 1 | . . . 1 . . . . Parts Lost 24 | . 1 . 9 . . 1 13 Power 5 | . . . 1 . . 1 3 Propulsion 10 | . . . 5 . . . 5 Utility 1 | . . . 1 . . . . Weapon 8 | . 1 . 2 . . . 5 Highest Loss Streak 4 | . 1 . 3 . . 1 4 To Critical Strikes . | . . . . . . . . Average Backups 1 | . . . 1 2 4 2 1 Power . | . . . . 1 1 . . Propulsion . | . . . . . . . . Utility . | . . . . . . . . Weapon . | . . . . 1 3 2 . Tool/Special . | . . . . . . . . Unused Backups 2 | . . . 1 . . . 1 Power . | . . . . . . . . Propulsion 1 | . . . 1 . . . . Utility . | . . . . . . . . Weapon 1 | . . . . . . . 1 Tool/Special . | . . . . . . . . Average Slot Usage (%) 62 | . 61 89 60 62 55 63 41 Engine 9 | . 14 14 10 11 11 10 2 Treads 9 | . 28 28 6 . . . . Flight 10 | . . . 8 22 22 22 11 Device 3 | . . 13 3 . . . . Processor 8 | . . 5 11 11 11 11 8 Energy Gun 16 | . 14 13 16 18 11 20 15 Launcher 4 | . 4 14 4 . . . . Peak Build Rating 18 | 4 5 8 18 15 12 14 18 Average Rating 9 | 2 4 7 11 13 12 11 10 On Entrance 8 | . 4 4 8 15 12 12 12 Naked Turns 24 | . . . . . . . 24 Heaviest Build 14 | 7 10 12 12 11 8 11 14 Greatest Support 40 | 40 40 40 40 9 9 9 14 Greatest Overweight (x) 2 | 1 . . 2 1 . 1 2 Average Overweight (x) . | . . . . . . . . Largest Inventory Capacity 5 | 5 5 5 5 5 5 5 5 Average Capacity 5 | 5 5 5 5 5 5 5 5 Most Carried 5 | 3 1 2 5 4 4 4 3 Average Carried 1 | . . . 1 2 4 2 1 Final Capacity 5 | 5 5 5 5 5 5 5 5 Final Carried 4 | . . . 2 4 4 2 . Class Distribution -------------------- 88% | Mutant 6% | Sprinter 4% | Gunner Dominant Class ---------------- Mutant | -10/Materials Mutant | -10/Mines Mutant | -9/Materials Mutant | -9/Mines Mutant | -9/Exiles Mutant | -8/Mines Mutant | -8/Materials Resources | -11 -10 -10 -9 -9 -9 -8 -8 ----------- Run | Yrd Mat Min Mat Min Exi Min Mat Matter Collected 844 | 235 25 105 240 10 . 11 218 Remotely . | . . . . . . . . Salvage Created 1095 | . 148 79 292 . . 155 421 Parts 76 | . 11 4 32 . . 9 20 Haulers Intercepted 1 | . . . 1 . . . . Recyclers Shooed 1 | . . . . . . 1 . Parts Field Recycled . | . . . . . . . . Retrieved Matter . | . . . . . . . . Parts Self-Destructed . | . . . . . . . . Prevented . | . . . . . . . . Kills | -11 -10 -10 -9 -9 -9 -8 -8 ------- Run | Yrd Mat Min Mat Min Exi Min Mat Combat Hostiles Destroyed 33 | . 4 3 12 . . 4 10 Guns 24 | . 3 1 7 . . 4 9 AOE 7 | . 1 2 4 . . . . Classes Destroyed 8 | . 4 . 3 . . 1 . Worker 2 | . 1 . 1 . . . . Builder 1 | . . . 1 . . . . Hauler 1 | . . . 1 . . . . Recycler 1 | . . . . . . 1 . Watcher 2 | . 1 . 1 . . . . Swarmer 18 | . 2 1 8 . . 4 3 Grunt 11 | . 2 2 2 . . . 5 Sentry 4 | . . . 2 . . . 2 Best Kill Streak 5 | . 4 4 5 . . 4 5 Combat Bots Only 5 | . 4 2 4 . . 3 5 Max Kills in Single Turn 3 | . 1 2 3 . . 1 2 Gunslinging 1 | . . . . . . . 1 Exploded 2 | . 1 2 2 . . . . Melee . | . . . . . . . . Uniques/NPCs Destroyed . | . . . . . . . . Combat | -11 -10 -10 -9 -9 -9 -8 -8 -------- Run | Yrd Mat Min Mat Min Exi Min Mat Hostile Shots Fired 228 | . 35 11 73 3 . 11 95 Missed 73 | . 10 3 24 . . 4 32 Hits 155 | . 25 8 49 3 . 7 63 Melee 12 | . . . . . . . 12 Projectile 143 | . 25 8 49 3 . 7 51 AOE 2 | . . . . . . . 2 Critical Strikes 13 | . 1 . 2 . . . 10 Damage Taken 2348 | . 297 123 586 36 . 95 1211 Core 927 | . 65 12 183 25 . 70 572 Absorbed by Shields . | . . . . . . . . Core Remaining (%) 66 | 100 . 69 . . . 30 . Volleys Fired 92 | . 16 10 34 . . 10 22 Largest 3 | . 2 2 2 . . 2 3 Hottest 168 | . 70 95 130 . . 101 168 Shots Fired 158 | . 21 12 52 . . 20 53 Gun 145 | . 16 8 48 . . 20 53 Cannon . | . . . . . . . . Launcher 13 | . 5 4 4 . . . . Special . | . . . . . . . . Kinetic . | . . . . . . . . Thermal 118 | . . 8 48 . . 10 52 Explosive 13 | . 5 4 4 . . . . Electromagnetic 27 | . 16 . . . . 10 1 Robot Hit Streak 10 | . 3 3 6 . . 3 10 Robot Miss Streak 3 | . 2 3 2 . . 2 2 Penetration Max . | . . . . . . . . Secondary Targets 5 | . . . 1 . . 1 3 Max Gunslinging Chain 1 | . . . 1 . . 1 1 Shots Hit Robots 98 | . 11 7 34 . . 10 36 Core Hits 62 | . 13 7 19 . . 5 18 Critical Kills . | . . . . . . . . Critical Parts Destroyed . | . . . . . . . . Critical Strikes 5 | . . . 2 . . 1 2 Burn 5 | . . . 2 . . 1 2 Melee Attacks . | . . . . . . . . Impact . | . . . . . . . . Slashing . | . . . . . . . . Piercing . | . . . . . . . . Sneak Attacks . | . . . . . . . . Combat Hostiles . | . . . . . . . . Follow-up Attacks . | . . . . . . . . Damage Inflicted 2131 | . 316 251 771 . . 184 609 Guns 1432 | . 102 65 511 . . 145 609 Cannons . | . . . . . . . . Explosions 699 | . 214 186 260 . . 39 . Melee . | . . . . . . . . Ramming . | . . . . . . . . Kinetic . | . . . . . . . . Thermal 1246 | . . 65 511 . . 75 595 Explosive 660 | . 214 186 260 . . . . Electromagnetic 225 | . 102 . . . . 109 14 Impact . | . . . . . . . . Slashing . | . . . . . . . . Piercing . | . . . . . . . . Highest Corruption . | . . . . . . . . Average Corruption . | . . . . . . . . Corruption Purged . | . . . . . . . . Corruption Blocked . | . . . . . . . . Overload Shots . | . . . . . . . . Overflow Damage . | . . . . . . . . Projectiles . | . . . . . . . . Explosions . | . . . . . . . . Melee . | . . . . . . . . Knockbacks . | . . . . . . . . Impact . | . . . . . . . . Kinetic . | . . . . . . . . Secondary . | . . . . . . . . Self-Inflicted Damage 132 | . 21 49 24 . . 38 . Shots 7 | . 2 2 2 . . 1 . Rammed 1 | . . . . . . 1 . Targets Rammed 1 | . . . . . . 1 . Kicked . | . . . . . . . . Crushed . | . . . . . . . . Highest Temperature 661 | . 39 30 565 . . 111 661 Average Temperature 161 | . 19 12 170 . . 50 251 Received Heat Transfer 504 | . 99 21 204 . . . 180 Effects 27 | . . . 8 . . . 19 Shutdowns 3 | . . . 3 . . . . Energy Bleed 4 | . . . . . . . 4 Interference 6 | . . . 1 . . . 5 Matter Decay 4 | . . . 1 . . . 3 Damage (minor) 3 | . . . . . . . 3 Damage (major) 7 | . . . 3 . . . 4 Siege Activations . | . . . . . . . . Martial Activations . | . . . . . . . . Shielding Activations . | . . . . . . . . Robots Disrupted . | . . . . . . . . Combat Hostiles . | . . . . . . . . Robots Corrupted . | . . . . . . . . Combat Hostiles . | . . . . . . . . Parts Fried . | . . . . . . . . Impact Corruptions . | . . . . . . . . Robots Melted 2 | . . . 1 . . . 1 Combat Hostiles 2 | . . . 1 . . . 1 Parts Melted 11 | . . . 2 . . . 9 Heat Transferred 3108 | . . 148 1369 . . 148 1443 Parts Sabotaged . | . . . . . . . . Parts Stolen . | . . . . . . . . Parts Stripped . | . . . . . . . . Power Chain Reactions 1 | . . . . . . 1 . Alert | -11 -10 -10 -9 -9 -9 -8 -8 ------- Run | Yrd Mat Min Mat Min Exi Min Mat Maximum Alert Level . | . . . . . . . . Low Security (%) 100 | 100 100 100 100 100 . 100 100 Level 1 . | . . . . . . . . Level 2 . | . . . . . . . . Level 3 . | . . . . . . . . Level 4 . | . . . . . . . . Level 5 . | . . . . . . . . High Security . | . . . . . . . . Max Security . | . . . . . . . . Peak Influence 135 | . 123 94 108 . . 62 135 Initial 39 | . . 39 . . . . . Average 33 | . 45 31 34 . . 19 56 Influence Increases 1143 | . 183 140 343 . . 132 345 Destroy 0b10 Robot/C 700 | . 80 100 240 . . 80 200 Destroy 0b10 Robot/NC 35 | . 10 . 20 . . 5 . Destroy Leader 146 | . 22 20 54 . . 10 40 Allied During Kill 6 | . . 6 . . . . . Disable Machine 15 | . 15 . . . . . . Destroy Structure 76 | . 26 14 29 . . 7 . Partial Spotted 15 | . . . . . . . 15 Lose Combat Pursuer 150 | . 30 . . . . 30 90 Influence Decreases 1104 | . 80 243 343 . . 132 306 Entered New Map 64 | . . 64 . . . . . Time Decay 800 | . 70 159 263 . . 122 186 Lost Part 220 | . 10 . 80 . . 10 120 Lost Ally 20 | . . 20 . . . . . Squads Dispatched 4 | . . . 2 . . . 2 Investigation . | . . . . . . . . Extermination . | . . . . . . . . Reinforcement 4 | . . . 2 . . . 2 Assault . | . . . . . . . . Garrison . | . . . . . . . . Intercept . | . . . . . . . . Searches Triggered . | . . . . . . . . Construction Impeded . | . . . . . . . . Haulers Reinforced . | . . . . . . . . Active Scanning Responses . | . . . . . . . . Cargo Convoy Interrupts . | . . . . . . . . Stealth | -11 -10 -10 -9 -9 -9 -8 -8 --------- Run | Yrd Mat Min Mat Min Exi Min Mat Distress Signals 3 | . 2 . . . . 1 . Communications Jammed . | . . . . . . . . Distress Signals . | . . . . . . . . Times Spotted 76 | . 9 5 14 18 . 4 26 Peak Tracking Total 20 | . 7 2 5 20 . 3 9 Tactical Retreats 8 | . 1 . . 1 . 1 5 Traps | -11 -10 -10 -9 -9 -9 -8 -8 ------- Run | Yrd Mat Min Mat Min Exi Min Mat Traps Triggered . | . . . . . . . . Indirectly . | . . . . . . . . Trap Hack Attempts . | . . . . . . . . Triggered . | . . . . . . . . Disarmed . | . . . . . . . . Reprogrammed . | . . . . . . . . Reused . | . . . . . . . . Traps Extracted . | . . . . . . . . Installed . | . . . . . . . . Triggered . | . . . . . . . . Machines | -11 -10 -10 -9 -9 -9 -8 -8 ---------- Run | Yrd Mat Min Mat Min Exi Min Mat Machines Disabled 1 | . 1 . . . . . . Max in Single Turn 1 | . 1 . . . . . . Machines Repaired . | . . . . . . . . Machines Dismantled . | . . . . . . . . Machines Sabotaged . | . . . . . . . . Overloaded Fab Kills . | . . . . . . . . Hacking | -11 -10 -10 -9 -9 -9 -8 -8 --------- Run | Yrd Mat Min Mat Min Exi Min Mat Machines Accessed 2 | . 1 . . . . . 1 Terminals 2 | . 1 . . . . . 1 Fabricators . | . . . . . . . . Repair Stations . | . . . . . . . . Recycling Units . | . . . . . . . . Scanalyzers . | . . . . . . . . Garrison Access . | . . . . . . . . Total Hacks 3 | . 1 . . . . . 2 Successful 1 | . . . . . . . 1 Failed 2 | . 1 . . . . . 1 Catastrophic . | . . . . . . . . Database Lockouts . | . . . . . . . . Manual 2 | . 1 . . . . . 1 Terminals 3 | . 1 . . . . . 2 Fabricators . | . . . . . . . . Repair Stations . | . . . . . . . . Recycling Units . | . . . . . . . . Scanalyzers . | . . . . . . . . Garrison Access . | . . . . . . . . Terminal Hacks 1 | . . . . . . . 1 Alert Level 1 | . . . . . . . 1 Fabricator Hacks . | . . . . . . . . Repair Station Hacks . | . . . . . . . . Recycling Unit Hacks . | . . . . . . . . Scanalyzer . | . . . . . . . . Garrison Access Hacks . | . . . . . . . . Unauthorized Hacks . | . . . . . . . . Terminals . | . . . . . . . . Fabricators . | . . . . . . . . Repair Stations . | . . . . . . . . Recycling Units . | . . . . . . . . Scanalyzers . | . . . . . . . . Garrison Access . | . . . . . . . . Data Cores Recovered . | . . . . . . . . Used . | . . . . . . . . Hacking Detections 2 | . 1 . . . . . 1 Full Trace Events . | . . . . . . . . Feedback Events . | . . . . . . . . Feedback Blocked . | . . . . . . . . Robot Schematics Acquired . | . . . . . . . . Robots Built . | . . . . . . . . Authchips . | . . . . . . . . Time . | . . . . . . . . Total Robot Build Rating . | . . . . . . . . Part Schematics Acquired . | . . . . . . . . Parts Built . | . . . . . . . . Authchips . | . . . . . . . . Time . | . . . . . . . . Total Part Build Rating . | . . . . . . . . Parts Repaired . | . . . . . . . . Time . | . . . . . . . . Parts Recycled . | . . . . . . . . Recycled Matter . | . . . . . . . . Retrieved Matter . | . . . . . . . . Retrieved Components . | . . . . . . . . Parts Scanalyzed . | . . . . . . . . Part Schematics Acquired . | . . . . . . . . Parts Damaged . | . . . . . . . . Bothacking | -11 -10 -10 -9 -9 -9 -8 -8 ------------ Run | Yrd Mat Min Mat Min Exi Min Mat Used RIF Installer . | . . . . . . . . Robots Hacked . | . . . . . . . . Non-combat . | . . . . . . . . Combat . | . . . . . . . . Robot Hacks Applied . | . . . . . . . . Relay Couplers Released . | . . . . . . . . Fabnet Peak Effective % . | . . . . . . . . Robots Rewired . | . . . . . . . . Allies Hacked . | . . . . . . . . Hacks Repelled . | . . . . . . . . Allies | -11 -10 -10 -9 -9 -9 -8 -8 -------- Run | Yrd Mat Min Mat Min Exi Min Mat Total Allies 2 | . . 2 . . . . . Largest Group 2 | . . 2 1 . . . . Highest-Rated Group 60 | . . 60 31 . . . . Highest-Rated Ally 31 | . . 31 31 . . . . Total Orders . | . . . . . . . . Ally Attacks 8 | . . 7 1 . . . . Total Damage 83 | . . 83 . . . . . Kills 2 | . . 2 . . . . . Allies Corrupted . | . . . . . . . . Allies Melted . | . . . . . . . . Intel | -11 -10 -10 -9 -9 -9 -8 -8 ------- Run | Yrd Mat Min Mat Min Exi Min Mat Active Infowar (turns) . | . . . . . . . . Robot Analysis Total . | . . . . . . . . Derelict Logs Recovered 1 | . . 1 . . . . . Drone Launches . | . . . . . . . . Drone Recoveries . | . . . . . . . . Exploration | -11 -10 -10 -9 -9 -9 -8 -8 ------------- Run | Yrd Mat Min Mat Min Exi Min Mat Turns Passed 2433 | 57 221 417 746 191 39 340 422 Spaces Moved 2170 | 38 114 238 532 269 114 327 538 Core 239 | 14 . . 26 . . . 199 Treads 590 | 24 114 238 214 . . . . Legs 34 | . . . . . . . 34 Wheels . | . . . . . . . . Hover . | . . . . . . . . Flight 1307 | . . . 292 269 114 327 305 Fastest Speed 29 | 50 160 160 29 34 34 34 30 Average Speed 94 | 132 160 160 113 63 34 89 61 Slowest Speed 200 | 160 160 160 195 114 34 114 200 Overloaded Moves . | . . . . . . . . Propulsion Burnouts . | . . . . . . . . Robots Hopped 3 | . . . 1 . . 2 . Potential Cave-ins . | . . . . . . . . Cave-ins Triggered . | . . . . . . . . Exploration Rate (%) 37 | 4 30 66 24 65 24 51 38 Regions Visited 7 Branch Regions 4 Pre-discovered Areas 1 | . . . . 1 . . . Known Exits Taken . | . . . . . . . . Unknown Exits Taken 7 | 1 1 1 1 1 1 1 . Scrap Searched 3 | . . 1 . 2 . . . Spaces Dug . | . . . . . . . . Terrain Destroyed 71 | . 22 14 28 . . 7 . Melee . | . . . . . . . . Projectile . | . . . . . . . . AOE 71 | . 22 14 28 . . 7 . Terrain Rammed . | . . . . . . . . Walls Destroyed . | . . . . . . . . Machines Disabled . | . . . . . . . . Actions | -11 -10 -10 -9 -9 -9 -8 -8 --------- Run | Yrd Mat Min Mat Min Exi Min Mat Total 2400 | 45 132 262 621 289 113 353 585 Wait 62 | . 1 9 13 18 . 16 5 Move 2157 | 37 113 237 529 268 113 322 538 Hop 3 | . . . 1 . . 2 . Pick Up 34 | 4 1 3 17 1 . . 8 Fast Attach . | . . . . . . . . Attach 29 | 4 1 3 11 . . 2 8 Detach 4 | . . . 3 1 . . . Swap 10 | . . . 7 1 . . 2 Drop 8 | . . . 6 . . . 2 Fire 92 | . 16 10 34 . . 10 22 Melee . | . . . . . . . . Ram 1 | . . . . . . 1 . Kick . | . . . . . . . . Crush . | . . . . . . . . Escape Stasis . | . . . . . . . . Rewire . | . . . . . . . . Trap . | . . . . . . . . Miscellaneous . | . . . . . . . . Route ------- -11/Scrapyard -10/Materials -10/Mines (discovered 2 exits: [*Mat] / [*Sub]) -9/Materials -9/Mines (discovered 3 exits: *Mat x2 / [*Exi]) -9/Exiles -8/Mines -8/Materials History --------- Turn | Location | Event 11 | -11/Scrapyard | Discovered new exit (range 16) 58 | -11/Scrapyard | Entered Materials 155 | -10/Materials | Discovered new exit (range 15) 279 | -10/Materials | Entered Mines 320 | -10/Mines | Build established: Mutant 567 | -10/Mines | Learned 2 Materials zone layouts 627 | -10/Mines | Discovered new exit (range 14) 686 | -10/Mines | Discovered new exit (range 10) 696 | -10/Mines | Entered Materials 696 | -9/Materials | Accompanied by 1 ally 696 | -9/Materials | Evolved 2 slots: Propulsion x1, Utility x1 701 | -9/Materials | Led the pair of lost Derelicts to an unsafe place 1274 | -9/Materials | Lost 3 parts (2n1w) 1391 | -9/Materials | Discovered new exit (range 16) 1442 | -9/Materials | Entered Mines 1483 | -9/Mines | Met a Derelict bent on vengeance 1518 | -9/Mines | Discovered new exit (range 7) 1547 | -9/Mines | Discovered new exit (range 10) 1579 | -9/Mines | Assembled infested the area 1584 | -9/Mines | Assisted by a Guerilla fighting off Assembled 1591 | -9/Mines | Core integrity fell below 50% 1599 | -9/Mines | Learned location of Storage (-7) 1632 | -9/Mines | Deemed a non-threat by the Exiles lab entrance 1632 | -9/Mines | Discovered new exit (range 5) 1633 | -9/Mines | Entered Exiles 1639 | -9/Exiles | Discovered new exit (range 15) 1644 | -9/Exiles | Met 8R-AWN 1649 | -9/Exiles | Met EX-HEX 1672 | -9/Exiles | Entered Mines 1683 | -8/Mines | Discovered new exit (range 5) 2012 | -8/Mines | Entered Materials 2012 | -8/Materials | Evolved 2 slots: Utility x1, Weapon x1 2269 | -8/Materials | Lost 3 parts (1p2n) 2316 | -8/Materials | Lost 4 parts (1n3w) 2409 | -8/Materials | Core integrity fell below 50% 2422 | -8/Materials | Core integrity fell below 20% 2434 | -8/Materials | Destroyed by H-61 Shepherd with Heavy Assault Cannon Last Messages --------------- 02305_ ALERT: Suspicious intruders detected, dispatching Cutter reinforcements to area. 02315_ Connecting with Terminal... 02315_ Current location identified: Materials >>Alert(Check) Current Alert Level: Low Security 02357_ ALERT: Suspicious intruders detected, dispatching Cutter reinforcements to area. 02400_ K-01 Serf cleans the Electrolysis Chamber. 02401_ Slug penetrates Wall. 02403_ Knocked back. 02403_ R-06 Scavenger destroyed. 02404_ Penetrated by Slug. 02405_ Particle Gun destroyed. 02407_ Lgt. Nuclear Core destroyed. 02408_ Aluminum Leg destroyed. 02410_ Imp. Targeting Computer severed. 02412_ U-05 Engineer lays Concrete. 02428_ Acquired 15 matter. 02433_ U-05 Engineer lays Concrete. Map ----- +----------------------------------------------------+ | | | | | | | ?????????????????????????????????????????????????? | | ?????????????????????????????????????????????????? | | ?????????????????????????????????????????????????? | | ?????????????????????????????????????????????????? | | ?????????????????????????????????????????????????? | | ?????????????????????????????????????????????????? | | ?????????????????????????????????????????????????? | | ?????????????????????????????????????????????????? | | ?????????????????????????????????????????????????? | | ?????????????????????#################???????????? | | ?????????????????????# # """ ????????????? | | ?????????????????????# # "Y" ????????????? | | ?????????????????????# # ?????########? | | ?????????????????????# # ! ?????# #? | | ?????????????????????# # ??????# !#? | | ?????????????????????# # ??????# "" #? | | ?????????????????????# #?#+##+#???# "T #? | | ?????????????????????# % #?# #???# "" #? | | ?????????????????????# % #?# #???# #? | | ?????????????????????#####+###### ########+###? | | ????????????????????????# % % #??? | | ????????????????????????# c########### #??? | | ????????????????????????#@ #?????????# #??? | | ????????????????????????+ #?###?????# ###? | | ????????????????????????# % ### ####??# #? | | ????????????##??????????# # #??# #? | | ???????????? ????#?????# # """ #??# #? | | ?????????? ????# ????# # R" #??# #? | | " ????????? """??# ???# + """ #??# #? | | " """????? """ ?# ??# # #### ## | | " """ """ """ ?# =?# H/ / / | | ?# # ############ | | #????## ## # | | " " """ """ #????##%! # # | | ?? """ """ ######! u% %# | | ???? " """ """ u " | | ?????? % + | | ???????? # ######### | | ???????###+############# ! # #???????? | | ???????# #??????### # # # #???????? | | ???????# ! #????????# ############# #???????? | | ???????# """ #????????# #???????????# #?####### | | ???????# """"" #????????# #???????????# #?# | | ???????# """"" #??????### ###?????????# #?# | | ???????# """"" #??????# ###########%### """ | | ???????# """ ######## % # """"" | | ???????# + + """"" | +----------------------------------------------------+ Best States ------------- Heat Dissipation 38 Energy Generation 14 Energy Capacity 250 Matter Stores 300 Matter Capacity 300 Sight Range 16 Terrain Scan Density 10 Evasion (%) 64 Targeting Accuracy 6 Recoil Reduction 2 Item Schematics ----------------- None Robot Schematics ------------------ None Fabricated ------------ Nothing Repaired ---------- Nothing Alien Tech Used ----------------- None Achievements -------------- Hunted Slippery One Challenges ------------ None Game ------ Seed GuidedPotentialMultitool Manual? 0 Play Time 00:30:09 Cumulative 7.8 hours Start 2025.08.14 @ 20:45:15 End 2025.08.15 @ 10:13:11 Sessions 3 Manual Loads 0 Difficulty Rogue Special Mode None Game No. 26 Rogue 20 Adventurer 6 Explorer 0 Win Type - Total 0 Types 0/0/0/0/0/0/0/0/0/0 Lore% 6 Gallery% 14 Achievement% 14 Wizard Run 0 Options --------- Layout 0 ASCII 0 Keyboard 1 Movement Numpad Keybinds 0 Fullscreen 1 Font 24/Proggy Map View 76x50 Zoom Use 0% Tactical HUD 1 Map Filters NONE Filters NONE Steam 1 RUN: fc66ad0d-ea07-49c6-a00b-683f05593bb4